[Event "10th Iberoamericano-ch 2024"]
[Site "Linares"]
[Date "2024.09.27"]
[Round "4.22"]
[White "Lorente Serrano, Rosa Adela"]
[Black "Vitier Vazquez, Cristian"]
[Result "1-0"]
[ECO "B21"]
[WhiteElo "2087"]
[BlackElo "2344"]
[Annotator "RC"]
[PlyCount "51"]
[EventDate "2024.09.25"]
[EventType "swiss"]
[EventCountry "ESP"]
[SourceTitle "playchess.com"]
[Source "ChessBase"]
[SourceQuality "1"]
[TimeControl "5400+30"]

1. e4 {[%emt 0:02:30]} c5 {[%emt 0:00:34]} 2. d4 {[%emt 0:01:18]} cxd4 {[%emt 0:00:09]} 3. Qxd4 {[%emt 0:00:09]} Nc6 {[%emt 0:00:32]} 4. Qd3 {[%emt 0:00:33]} Nf6 {[%emt 0:05:35]} 5. Nc3 {[%emt 0:00:25]} g6 {[%emt 0:06:58]} 6. Nf3 {[%emt 0:00:54]} Bg7 {[%emt 0:01:27]} 7. Be2 {[%emt 0:01:04]} O-O {[%emt 0:00:44]} 8. O-O {[%emt 0:01:20]} d6 {[%emt 0:01:59]} 9. Nd5 {[%emt 0:03:58]} Be6 {[%emt 0:19:22]} 10. c3 {[%emt 0:06:25]} Nd7 {[%emt 0:07:29]} 11. Bg5 {[%emt 0:20:07]} h6 {[%emt 0:00:43]} 12. Be3 {[%emt 0:00:55]} Rc8 {[%emt 0:11:36]} 13. Rad1 {[%emt 0:08:47]} Qa5 {[%emt 0:07:16]} 14. Qd2 {[%emt 0:10:06]} Kh7 {[%emt 0:01:37]} 15. h4 {[%emt 0:06:34]} Qa4 {[%emt 0:11:49]} 16. h5 {[%emt 0:16:56]} Qxe4 17. Nf4 {[%emt 0:00:47]} Bc4 {[%emt 0:04:23]} 18. Bxc4 {[%emt 0:02:59]} Qxc4 {[%emt 0:00:02]} 19. Qc2 {[%emt 0:00:13]} Nde5 {[%emt 0:03:06]} 20. Nh4 {[%emt 0:02:25]} Bf6 {[%emt 0:07:21]} 21. hxg6+ {[%emt 0:00:31]} Kh8 {[%emt 0:00:09]} 22. b3 {[%emt 0:05:54]} Qb5 {[%emt 0:02:14]} 23. c4 {[%emt 0:02:18]} Nb4 {[%emt 0:01:19]} 24. Qe2 {[%emt 0:00:33]} Qd7 {[%emt 0:00:50]} 25. Qh5 {[%emt 0:00:26]} Qg4 {[%emt 0:01:26]} 26. Qxh6+ {[%emt 0:00:20]} 1-0

[Event "10th Iberoamericano-ch 2024"]
[Site "Linares"]
[Date "2024.09.27"]
[Round "4.23"]
[White "Teran Alvarez, Ismael"]
[Black "Gavarrete, Joel"]
[Result "1/2-1/2"]
[ECO "C49"]
[WhiteElo "2329"]
[BlackElo "2059"]
[Annotator "RC"]
[PlyCount "59"]
[EventDate "2024.09.25"]
[EventType "swiss"]
[EventCountry "ESP"]
[SourceTitle "playchess.com"]
[Source "ChessBase"]
[SourceQuality "1"]
[TimeControl "5400+30"]

1. e4 {[%emt 0:06:06]} e5 {[%emt 0:01:01]} 2. Nf3 {[%emt 0:00:05]} Nf6 {[%emt 0:00:10]} 3. Nc3 {[%emt 0:00:38]} Nc6 {[%emt 0:02:50]} 4. Bb5 {[%emt 0:00:14]} Bb4 {[%emt 0:10:19]} 5. O-O {[%emt 0:00:25]} O-O {[%emt 0:01:35]} 6. d3 {[%emt 0:01:37]} d6 {[%emt 0:13:03]} 7. Bg5 {[%emt 0:00:18]} Bxc3 {[%emt 0:00:34]} 8. bxc3 {[%emt 0:00:02]} h6 {[%emt 0:02:10]} 9. Bh4 {[%emt 0:01:05]} a6 {[%emt 0:00:30]} 10. Bxc6 {[%emt 0:06:55]} bxc6 {[%emt 0:00:07]} 11. d4 {[%emt 0:00:15]} Qe7 {[%emt 0:06:47]} 12. Re1 {[%emt 0:04:52]} Bg4 {[%emt 0:10:51]} 13. Qd3 {[%emt 0:00:30]} Bxf3 {[%emt 0:00:30]} 14. Qxf3 {[%emt 0:00:18]} Qe6 {[%emt 0:00:37]} 15. Bxf6 {[%emt 0:01:37]} Qxf6 {[%emt 0:01:02]} 16. Qxf6 {[%emt 0:08:42]} gxf6 {[%emt 0:00:03]} 17. Rab1 {[%emt 0:00:06]} Rfb8 {[%emt 0:02:17]} 18. Rb3 Rb5 19. Reb1 {[%emt 0:02:01]} Rab8 {[%emt 0:03:44]} 20. Kf1 {[%emt 0:00:40]} Kg7 {[%emt 0:01:06]} 21. Ke2 {[%emt 0:01:47]} Kg6 {[%emt 0:00:16]} 22. Ke3 {[%emt 0:20:06]} f5 {[%emt 0:06:57]} 23. dxe5 {[%emt 0:11:08]} dxe5 {[%emt 0:00:21]} 24. Rd1 {[%emt 0:00:29]} fxe4 {[%emt 0:02:55]} 25. Kxe4 {[%emt 0:01:52]} f5+ {[%emt 0:00:19]} 26. Ke3 {[%emt 0:00:04]} Rf8 {[%emt 0:05:08]} 27. Rd7 {[%emt 0:01:49]} Rf7 {[%emt 0:00:06]} 28. Rd8 {[%emt 0:00:21]} Ra5 {[%emt 0:03:52]} 29. a3 {[%emt 0:02:13]} Rc5 {[%emt 0:01:43]} 30. Rg8+ {[%emt 0:04:48]} 1/2-1/2

[Event "10th Iberoamericano-ch 2024"]
[Site "Linares"]
[Date "2024.09.27"]
[Round "4.24"]
[White "Ruiz Buendia, Miguel"]
[Black "Henriquez Villagra, Cristobal"]
[Result "0-1"]
[ECO "B31"]
[WhiteElo "2269"]
[BlackElo "2604"]
[Annotator "TA"]
[PlyCount "74"]
[EventDate "2024.09.25"]
[EventType "swiss"]
[EventCountry "ESP"]
[SourceTitle "playchess.com"]
[Source "ChessBase"]
[SourceQuality "1"]
[TimeControl "5400+30"]

{[%evp 18,74,18,4,13,4,11,-12,-9,-32,-39,-23,-6,-33,-10,-6,-6,-18,-14,-18,0,-33,0,-16,15,3,5,4,16,-37,-5,-41,-42,-107,-86,-95,-96,-103,-110,-100,-108,-195,-195,-592,-585,-895,-670,-29972,-29973,-29974,-29976,-29976,-29978,-29978,-29979,-29978,-29979,-29980,-29981]} 1. e4 {[%emt 0:00:06]} c5 {[%emt 0:07:55]} 2. Nf3 {[%emt 0:00:05]} Nc6 {[%emt 0:00:04]} 3. Bb5 {[%emt 0:00:10]} g6 {[%emt 0:00:05]} 4. Bxc6 {[%emt 0:00:28]} dxc6 {[%emt 0:00:04]} 5. d3 {[%emt 0:00:15]} Bg7 {[%emt 0:00:07]} 6. O-O {[%emt 0:00:43]} Nf6 {[%emt 0:07:05][%cal Bg8f6,Bf6d7,Bd7f8][%mdl 32]} 7. h3 {[%emt 0:01:55]} Nd7 {[%emt 0:02:06]} 8. Nc3 {[%emt 0:00:43]} e5 {[%emt 0:02:16]} 9. Be3 {[%emt 0:00:20]} Qe7 {[%emt 0:01:10]} 10. Qd2 {[%emt 0:01:27]} Nf8 {[%emt 0:00:52]} 11. Ne2 {[%emt 0:06:33]} Ne6 {[%emt 0:08:31]} 12. c3 {[%emt 0:00:39]} O-O {[%emt 0:08:24] The position is equal.} 13. Ng5 {[%emt 0:06:51]} Rd8 {[%emt 0:05:38]} 14. Rad1 {[%emt 0:06:40]} b6 {[%emt 0:04:04]} 15. Nxe6 {[%emt 0:12:43]} Bxe6 {[%emt 0:03:17]} 16. Qc2 {[%emt 0:02:34]} Rd7 {[%emt 0:06:48][%cal Oa8d8]} (16... Bxa2 $2 17. b3 $18) 17. f4 {[%emt 0:03:28]} exf4 {[%emt 0:00:51]} (17... Bxa2 18. b3 $16) 18. Nxf4 {[%emt 0:02:26]} Rad8 {[%emt 0:01:03]} (18... Bxa2 $2 19. b3 $18) 19. a4 {[%emt 0:04:32]} Rd6 {[%emt 0:05:24]} (19... c4 $5 20. d4 Bf5 $14) 20. a5 {[%emt 0:08:24]} Be5 {[%emt 0:04:07]} 21. axb6 {[%emt 0:04:31]} axb6 {[%emt 0:00:02]} 22. b4 {[%emt 0:05:00]} cxb4 {[%emt 0:02:56]} 23. Bxb6 {[%emt 0:01:09]} (23. cxb4 $11 Qd7 24. Bxb6 Bxf4 25. Rxf4 Rxd3 26. Rxd3 Qxd3 27. Rf2 (27. Qxc6 Rc8 $11) 27... Qd1+ 28. Kh2 Qd6+ 29. Kg1 Qd1+ 30. Kh2 Qd6+ 31. Kg1 Qd1+) 23... b3 {[%emt 0:01:38]} 24. Qd2 {[%emt 0:06:22]} (24. Bxd8 {simplifies} bxc2 25. Bxe7 cxd1=R 26. Rxd1 Bxf4 27. Bxd6 Bxd6 28. Ra1) 24... Ra8 {[%emt 0:06:03] ...Ra2 is the strong threat.} 25. Nxe6 {[%emt 0:10:01]} (25. d4 $15) 25... Rxe6 $17 {[%emt 0:02:48]} 26. d4 {[%emt 0:01:33]} Ra2 $36 {[%emt 0:04:49][%mdl 2048] Black is in control.} 27. Qe3 {[%emt 0:01:47]} Bd6 {[%emt 0:05:19] Black is much more active.} 28. e5 {[%emt 0:00:36] [#]} Qb7 $1 {[%emt 0:00:29]} 29. Qf3 {[%emt 0:03:04]} (29. c4 $17 Qxb6 30. Qf4 (30. c5 $2 Bxc5 31. dxc5 Qb8 $19)) 29... Bxe5 $19 {[%emt 0:00:54]} (29... Qxb6 30. Qxf7+ (30. exd6 Qb7 $17) 30... Kh8 31. exd6 (31. Qxe6 Ra8 32. exd6 Qd8 33. Rf7 Qg5 34. d7 Rf8 35. Qe8 Qe3+ 36. Qxe3 Rxf7) 31... Qd8 32. Qxe6 Kg7 33. d7 (33. Qxb3 Ra7 $18) 33... Ra8 34. Rf7+ (34. Qxc6 h5 $18) 34... Kh6 35. Qe3+ (35. Qxb3 Qg5 $18) 35... Qg5 36. Rxh7+ (36. Qxg5+ Kxg5 37. Rb1 Kh5 $18) 36... Kxh7 37. Qxg5) 30. Rb1 $2 {[%emt 0:02:21]} (30. dxe5 Qxb6+ 31. Kh1) 30... Rf6 {[%emt 0:02:12]} ({Not} 30... Qxb6 31. Qxf7+ Kh8 32. Qf8#) 31. Qe3 {[%emt 0:00:50] [#]} c5 $1 {[%emt 0:02:25][%mdl 512]} 32. Qg5 {[%emt 0:00:43]} (32. Rf3 Rxf3) 32... h6 {[%emt 0:01:53] Black mates.} 33. Qg4 {[%emt 0:00:28]} h5 {[%emt 0:00:11]} 34. Qg5 {[%emt 0:00:19]} Bf4 {[%emt 0:00:44]} 35. Rxf4 {[%emt 0:00:54]} Rxf4 {[%emt 0:00:03]} ({Worse is} 35... Rxb6 36. Rbf1 Kg7 37. dxc5 $11) 36. d5 {[%emt 0:02:42]} Rff2 {[%emt 0:00:12]} 37. Qd8+ {[%emt 0:00:25]} Kh7 {[%emt 0:00:12] Weighted Error Value: White=0.75/Black=0.20 (precise) .  Mistake:       	White=4     	---        Inaccurate:     	White=4     	Black=3      OK:         	White=7     	Black=6      Best:        	White=1     	Black=3      Strong:       	---       	Black=1} 0-1

[Event "10th Iberoamericano-ch 2024"]
[Site "Linares"]
[Date "2024.09.27"]
[Round "4.25"]
[White "Veiga, Jose Francisco R P N"]
[Black "Garzon Zapatanga, Christopher Leonel"]
[Result "1-0"]
[ECO "B23"]
[WhiteElo "2404"]
[BlackElo "2216"]
[Annotator "RC"]
[PlyCount "172"]
[EventDate "2024.09.25"]
[EventType "swiss"]
[EventCountry "ESP"]
[SourceTitle "playchess.com"]
[Source "ChessBase"]
[SourceQuality "1"]
[TimeControl "5400+30"]

1. e4 {[%emt 0:09:10]} c5 {[%emt 0:00:23]} 2. Nc3 {[%emt 0:00:36]} Nc6 {[%emt 0:00:23]} 3. Nf3 {[%emt 0:00:06]} g6 {[%emt 0:03:56]} 4. Bb5 {[%emt 0:02:35]} Bg7 {[%emt 0:00:50]} 5. O-O {[%emt 0:00:35]} Nd4 {[%emt 0:00:35]} 6. Bc4 {[%emt 0:02:16]} e6 {[%emt 0:02:09]} 7. Nxd4 {[%emt 0:04:12]} cxd4 {[%emt 0:00:16]} 8. Nb5 {[%emt 0:05:11]} Qb6 {[%emt 0:17:52]} 9. c3 {[%emt 0:00:41]} d5 {[%emt 0:03:33]} 10. exd5 {[%emt 0:01:15]} exd5 {[%emt 0:00:03]} 11. Qe2+ {[%emt 0:03:56]} Ne7 {[%emt 0:00:06]} 12. Bb3 {[%emt 0:21:56]} Be6 {[%emt 0:15:01]} 13. Nxd4 {[%emt 0:01:07]} Bxd4 {[%emt 0:00:05]} 14. Ba4+ {[%emt 0:02:51]} Nc6 {[%emt 0:02:25]} 15. cxd4 {[%emt 0:00:17]} O-O {[%emt 0:01:04]} 16. Bxc6 {[%emt 0:00:09]} Qxc6 {[%emt 0:02:05]} 17. d3 {[%emt 0:00:22]} Rfe8 {[%emt 0:03:02]} 18. Be3 {[%emt 0:00:36]} Qa6 {[%emt 0:03:16]} 19. g4 {[%emt 0:02:04]} Bd7 {[%emt 0:03:18]} 20. h3 {[%emt 0:07:59]} f5 {[%emt 0:03:40]} 21. Qf3 {[%emt 0:06:17]} Qxd3 {[%emt 0:03:57]} 22. Qxd5+ {[%emt 0:01:12]} Be6 {[%emt 0:00:05]} 23. Qg2 {[%emt 0:11:36]} fxg4 {[%emt 0:03:34]} 24. hxg4 {[%emt 0:00:02]} Rad8 {[%emt 0:00:13]} 25. Rfd1 {[%emt 0:02:06]} Qe2 {[%emt 0:03:45]} 26. d5 {[%emt 0:04:21]} Qxg4 {[%emt 0:04:47]} 27. d6 {[%emt 0:01:00]} Qh5 {[%emt 0:03:55]} 28. Rd4 {[%emt 0:03:02]} Bd7 {[%emt 0:02:24]} 29. Rc1 {[%emt 0:03:00]} Bc6 {[%emt 0:01:48]} 30. Rxc6 {[%emt 0:01:23]} bxc6 {[%emt 0:00:05]} 31. d7 {[%emt 0:01:21]} Re7 {[%emt 0:01:17]} 32. Qxc6 {[%emt 0:00:57]} Qf5 {[%emt 0:03:49]} 33. Qc4+ {[%emt 0:02:05]} Rf7 {[%emt 0:02:20]} 34. Rd5 {[%emt 0:00:28]} Qe6 {[%emt 0:00:47]} 35. Qc7 {[%emt 0:00:38]} Rfxd7 {[%emt 0:00:21]} 36. Qxd8+ {[%emt 0:00:28]} Rxd8 {[%emt 0:00:04]} 37. Rxd8+ {[%emt 0:00:04]} Kf7 {[%emt 0:00:03]} 38. Ra8 {[%emt 0:00:59]} Qg4+ {[%emt 0:01:05]} 39. Kh2 {[%emt 0:00:01]} Qh5+ {[%emt 0:00:19]} 40. Kg1 {[%emt 0:00:16]} Qd1+ {[%emt 0:00:20]} 41. Kh2 {[%emt 0:00:06]} Qd6+ {[%emt 0:00:07]} 42. Kg1 {[%emt 0:00:08]} a6 {[%emt 0:00:07]} 43. Ra7+ {[%emt 0:00:07]} Ke6 {[%emt 0:01:05]} 44. Rxh7 {[%emt 0:00:10]} Qd1+ {[%emt 0:00:16]} 45. Kh2 {[%emt 0:00:16]} Qd5 {[%emt 0:00:05]} 46. b3 {[%emt 0:00:11]} Qe5+ {[%emt 0:01:58]} 47. Kg2 {[%emt 0:00:41]} Qb2 {[%emt 0:00:46]} 48. Rh4 {[%emt 0:01:19]} Qxa2 {[%emt 0:00:30]} 49. Re4+ {[%emt 0:00:03]} Kf5 {[%emt 0:00:27]} 50. Rf4+ {[%emt 0:00:30]} Ke5 51. b4 {[%emt 0:00:14]} Qd5+ {[%emt 0:01:23]} 52. Kh2 {[%emt 0:00:55]} Qd1 {[%emt 0:03:05]} 53. Rc4 {[%emt 0:00:45]} Qb3 {[%emt 0:01:08]} 54. Rg4 {[%emt 0:01:03]} Kf5 {[%emt 0:00:32]} 55. Kg3 {[%emt 0:00:30]} Qd1 {[%emt 0:01:09]} 56. Rg5+ {[%emt 0:00:23]} Ke4 {[%emt 0:00:25]} 57. Rg4+ {[%emt 0:00:10]} Kf5 {[%emt 0:00:05]} 58. Rd4 {[%emt 0:00:46]} Qh1 {[%emt 0:01:13]} 59. Rf4+ {[%emt 0:00:20]} Ke5 {[%emt 0:00:23]} 60. Bd4+ {[%emt 0:00:28]} Kd5 {[%emt 0:00:19]} 61. Be3 {[%emt 0:00:34]} Ke5 {[%emt 0:00:33]} 62. Rh4 {[%emt 0:01:09]} Qg1+ {[%emt 0:01:40]} 63. Kf3 {[%emt 0:00:02]} Qd1+ {[%emt 0:01:16]} 64. Kg2 {[%emt 0:00:03]} Qd5+ {[%emt 0:00:06]} 65. f3 {[%emt 0:00:53]} Qd3 {[%emt 0:01:18]} 66. Re4+ {[%emt 0:00:21]} Qxe4 {[%emt 0:00:36]} 67. fxe4 {[%emt 0:00:16]} Kxe4 {[%emt 0:00:01]} 68. Bb6 {[%emt 0:00:34]} Kf4 {[%emt 0:00:26]} 69. Bc7+ {[%emt 0:00:15]} Kg4 {[%emt 0:00:13]} 70. Kf2 {[%emt 0:00:05]} Kf5 {[%emt 0:00:12]} 71. Ke3 {[%emt 0:00:41]} Ke6 {[%emt 0:01:03]} 72. Kf4 {[%emt 0:00:17]} Kf6 {[%emt 0:00:04]} 73. Bd8+ {[%emt 0:00:04]} Ke6 {[%emt 0:00:09]} 74. Kg5 {[%emt 0:00:12]} Kf7 {[%emt 0:00:24]} 75. Ba5 Kg7 {[%emt 0:00:05]} 76. Bb6 {[%emt 0:04:01]} Kf7 {[%emt 0:00:30]} 77. Bc7 {[%emt 0:00:15]} Kg7 {[%emt 0:00:19]} 78. Kf4 {[%emt 0:00:58]} Kf6 {[%emt 0:00:05]} 79. Ke4 {[%emt 0:00:08]} Ke6 {[%emt 0:00:06]} 80. Kd4 {[%emt 0:00:21]} Kd7 {[%emt 0:00:46]} 81. Bf4 {[%emt 0:00:22]} Kc6 {[%emt 0:00:31]} 82. Kc4 {[%emt 0:00:06]} Kb6 {[%emt 0:00:03]} 83. Bg5 {[%emt 0:00:15]} Kc6 {[%emt 0:00:12]} 84. Be3 {[%emt 0:00:05]} Kd6 {[%emt 0:00:08]} 85. Kb3 {[%emt 0:00:18]} Kc6 {[%emt 0:02:23]} 86. Ka4 {[%emt 0:00:05]} Kd5 1-0

[Event "10th Iberoamericano-ch 2024"]
[Site "Linares"]
[Date "2024.09.27"]
[Round "4.26"]
[White "Prado Acebo, Ines"]
[Black "Prado Lobo, Jonas"]
[Result "1/2-1/2"]
[ECO "C02"]
[WhiteElo "2189"]
[BlackElo "2385"]
[Annotator "RC"]
[PlyCount "76"]
[EventDate "2024.09.25"]
[EventType "swiss"]
[EventCountry "ESP"]
[SourceTitle "playchess.com"]
[Source "ChessBase"]
[SourceQuality "1"]
[TimeControl "5400+30"]

1. e4 {[%emt 0:00:03]} e6 {[%emt 0:00:21]} 2. d4 {[%emt 0:00:13]} d5 {[%emt 0:00:03]} 3. e5 {[%emt 0:00:13]} c5 {[%emt 0:00:08]} 4. c3 {[%emt 0:00:08]} Nc6 {[%emt 0:00:05]} 5. Nf3 {[%emt 0:00:08]} Bd7 {[%emt 0:00:07]} 6. Be2 {[%emt 0:00:08]} Nge7 {[%emt 0:00:05]} 7. O-O {[%emt 0:00:14]} Nf5 {[%emt 0:00:51]} 8. dxc5 {[%emt 0:00:14]} a5 {[%emt 0:00:06]} 9. Bd3 {[%emt 0:00:40]} Bxc5 {[%emt 0:00:34]} 10. Bxf5 {[%emt 0:00:55]} exf5 {[%emt 0:00:06]} 11. Qxd5 {[%emt 0:00:09]} Qb6 {[%emt 0:00:58]} 12. Ng5 {[%emt 0:10:37]} Nd8 {[%emt 0:00:56]} 13. Nd2 {[%emt 0:06:40]} h6 {[%emt 0:07:34]} 14. Ngf3 {[%emt 0:09:43]} Be6 {[%emt 0:16:28]} 15. Qd3 {[%emt 0:00:21]} Nc6 {[%emt 0:00:41]} 16. Nb3 {[%emt 0:09:49]} Rd8 {[%emt 0:02:25]} 17. Qc2 {[%emt 0:00:45]} Bc4 {[%emt 0:06:19]} 18. Nxc5 {[%emt 0:04:36]} Bxf1 {[%emt 0:17:52]} 19. Be3 {[%emt 0:07:31]} f4 {[%emt 0:00:45]} 20. Bxf4 {[%emt 0:31:08]} Qxc5 {[%emt 0:01:33]} 21. Rxf1 {[%emt 0:00:08]} O-O {[%emt 0:00:44]} 22. a3 {[%emt 0:04:41]} Qc4 {[%emt 0:02:13]} 23. Qf5 {[%emt 0:01:03]} Ne7 {[%emt 0:02:51]} 24. Qg4 {[%emt 0:00:06]} Ng6 {[%emt 0:14:55]} 25. Nd4 {[%emt 0:01:52]} Rfe8 {[%emt 0:03:39]} 26. Qg3 {[%emt 0:03:58]} b5 {[%emt 0:03:49]} 27. h4 {[%emt 0:04:22]} b4 {[%emt 0:02:12]} 28. axb4 {[%emt 0:00:13]} axb4 {[%emt 0:00:00]} 29. Bxh6 {[%emt 0:00:48]} Rxe5 {[%emt 0:01:12]} 30. f4 {[%emt 0:01:21]} Rxd4 {[%emt 0:04:58]} 31. cxd4 {[%emt 0:01:16]} Qxd4+ {[%emt 0:01:53]} 32. Kh2 {[%emt 0:00:13]} Re3 {[%emt 0:05:22]} 33. Qg4 {[%emt 0:00:09]} Qc4 {[%emt 0:02:17]} 34. Rf2 {[%emt 0:00:57]} gxh6 {[%emt 0:00:44]} 35. h5 {[%emt 0:00:23]} Re6 {[%emt 0:01:39]} 36. hxg6 {[%emt 0:01:04]} Rxg6 {[%emt 0:00:00]} 37. Qf3 {[%emt 0:00:24]} Qc5 {[%emt 0:01:19]} 38. Re2 {[%emt 0:00:25]} Qd6 {[%emt 0:00:48]} 1/2-1/2

[Event "10th Iberoamericano-ch 2024"]
[Site "Linares"]
[Date "2024.09.27"]
[Round "4.27"]
[White "Vega Gutierrez, Sabrina"]
[Black "Vehi Bach, Victor Manuel"]
[Result "1-0"]
[ECO "B41"]
[WhiteElo "2374"]
[BlackElo "2191"]
[Annotator "RC"]
[PlyCount "63"]
[EventDate "2024.09.25"]
[EventType "swiss"]
[EventCountry "ESP"]
[SourceTitle "playchess.com"]
[Source "ChessBase"]
[SourceQuality "1"]
[TimeControl "5400+30"]

1. e4 {[%emt 0:02:06]} c5 {[%emt 0:00:17]} 2. Nf3 {[%emt 0:00:41]} e6 {[%emt 0:00:09]} 3. d4 {[%emt 0:00:09]} cxd4 {[%emt 0:00:05]} 4. Nxd4 {[%emt 0:00:05]} a6 {[%emt 0:00:33]} 5. Qf3 {[%emt 0:00:14]} Nf6 {[%emt 0:03:12]} 6. Nc3 {[%emt 0:00:25]} d6 {[%emt 0:16:14]} 7. g4 {[%emt 0:00:52]} Qc7 {[%emt 0:00:08]} 8. Bg2 {[%emt 0:11:41]} Nfd7 {[%emt 0:09:04]} 9. Qg3 {[%emt 0:02:50]} Be7 {[%emt 0:08:35]} 10. g5 {[%emt 0:05:12]} Ne5 {[%emt 0:10:42]} 11. f4 {[%emt 0:02:18]} Nec6 {[%emt 0:01:13]} 12. Nde2 {[%emt 0:03:10]} b5 {[%emt 0:02:30]} 13. O-O {[%emt 0:02:46]} b4 {[%emt 0:15:22]} 14. Nd5 {[%emt 0:06:14]} exd5 {[%emt 0:00:18]} 15. exd5 {[%emt 0:00:18]} Bf5 {[%emt 0:08:10]} 16. dxc6 {[%emt 0:02:14]} Nxc6 {[%emt 0:00:07]} 17. Qf3 {[%emt 0:10:53]} Rc8 {[%emt 0:00:22]} 18. Qxc6+ {[%emt 0:02:57]} Qxc6 {[%emt 0:00:09]} 19. Bxc6+ {[%emt 0:00:04]} Rxc6 {[%emt 0:00:05]} 20. Nd4 {[%emt 0:00:12]} Rc5 {[%emt 0:00:38]} 21. a3 {[%emt 0:01:33]} bxa3 {[%emt 0:01:45]} 22. b4 {[%emt 0:01:07]} Rd5 {[%emt 0:00:09]} 23. Be3 {[%emt 0:08:16]} O-O {[%emt 0:02:21]} 24. c4 {[%emt 0:02:20]} Rxd4 {[%emt 0:00:04]} 25. Bxd4 {[%emt 0:00:07]} Rc8 {[%emt 0:00:10]} 26. Rfc1 {[%emt 0:03:07]} Bd3 {[%emt 0:00:17]} 27. c5 {[%emt 0:00:58]} dxc5 {[%emt 0:01:07]} 28. Rxa3 {[%emt 0:02:12]} Bb5 {[%emt 0:00:09]} 29. bxc5 {[%emt 0:02:10]} f6 {[%emt 0:00:22]} 30. gxf6 {[%emt 0:03:18]} gxf6 {[%emt 0:02:20]} 31. Kf2 {[%emt 0:00:19]} Kf7 {[%emt 0:00:24]} 32. Rh3 {[%emt 0:01:17]} 1-0

[Event "10th Iberoamericano-ch 2024"]
[Site "Linares"]
[Date "2024.09.27"]
[Round "4.28"]
[White "Castillo Beitia, Ashley Alexandra"]
[Black "Panelo, Marcelo"]
[Result "0-1"]
[ECO "A45"]
[WhiteElo "2071"]
[BlackElo "2364"]
[Annotator "RC"]
[PlyCount "122"]
[EventDate "2024.09.25"]
[EventType "swiss"]
[EventCountry "ESP"]
[SourceTitle "playchess.com"]
[Source "ChessBase"]
[SourceQuality "1"]
[TimeControl "5400+30"]

1. d4 {[%emt 0:00:03]} Nf6 {[%emt 0:04:33]} 2. Bf4 {[%emt 0:00:03]} b6 {[%emt 0:00:31]} 3. e3 {[%emt 0:00:25]} Bb7 {[%emt 0:00:09]} 4. Nf3 {[%emt 0:00:26]} g6 {[%emt 0:00:54]} 5. Nbd2 {[%emt 0:01:34]} Bg7 {[%emt 0:00:09]} 6. Be2 {[%emt 0:02:01]} d6 {[%emt 0:00:18]} 7. h3 {[%emt 0:00:50]} O-O {[%emt 0:00:14]} 8. O-O {[%emt 0:01:04]} Nbd7 {[%emt 0:00:32]} 9. c3 {[%emt 0:03:32]} c5 {[%emt 0:00:17]} 10. Re1 {[%emt 0:05:32]} Re8 {[%emt 0:18:36]} 11. Bh2 {[%emt 0:02:16]} a6 {[%emt 0:02:37]} 12. a4 {[%emt 0:06:21]} Ne4 {[%emt 0:09:42]} 13. Nxe4 {[%emt 0:05:25]} Bxe4 {[%emt 0:00:05]} 14. Ng5 {[%emt 0:04:28]} Bb7 {[%emt 0:03:08]} 15. Bf3 {[%emt 0:01:55]} Qc8 {[%emt 0:08:37]} 16. Bxb7 {[%emt 0:03:58]} Qxb7 {[%emt 0:00:07]} 17. Qf3 {[%emt 0:00:49]} Qxf3 {[%emt 0:00:06]} 18. Nxf3 {[%emt 0:00:05]} Rec8 {[%emt 0:03:15]} 19. Kf1 {[%emt 0:04:02]} Ra7 {[%emt 0:02:48]} 20. Ra2 {[%emt 0:02:09]} Rb7 {[%emt 0:00:44]} 21. Re2 {[%emt 0:04:10]} b5 {[%emt 0:02:38]} 22. axb5 {[%emt 0:00:35]} axb5 {[%emt 0:00:05]} 23. Ne1 {[%emt 0:05:41]} b4 {[%emt 0:07:07]} 24. Nd3 {[%emt 0:02:57]} bxc3 {[%emt 0:00:25]} 25. bxc3 {[%emt 0:00:18]} Rb3 {[%emt 0:00:31]} 26. Nf4 {[%emt 0:09:20]} Rxc3 {[%emt 0:01:19]} 27. Nd5 {[%emt 0:00:06]} Rc1+ {[%emt 0:00:20]} 28. Re1 {[%emt 0:00:01]} Rxe1+ {[%emt 0:00:07]} 29. Kxe1 {[%emt 0:00:06]} Bf8 {[%emt 0:05:35]} 30. Ra7 {[%emt 0:00:50]} Rd8 {[%emt 0:02:59]} 31. Bxd6 {[%emt 0:04:28]} exd6 {[%emt 0:00:17]} 32. Rxd7 {[%emt 0:00:02]} Ra8 {[%emt 0:00:18]} 33. Nf6+ {[%emt 0:03:27]} Kg7 {[%emt 0:00:15]} 34. Ne4 cxd4 {[%emt 0:02:29]} 35. Nxd6 {[%emt 0:03:01]} d3 {[%emt 0:00:59]} 36. Kd2 {[%emt 0:06:23]} Ra2+ {[%emt 0:00:51]} 37. Kxd3 {[%emt 0:01:26]} Bxd6 {[%emt 0:00:50]} 38. Rxd6 {[%emt 0:00:02]} Rxf2 {[%emt 0:00:09]} 39. g4 {[%emt 0:01:41]} Rh2 {[%emt 0:00:15]} 40. Ke4 {[%emt 0:01:19]} Rxh3 {[%emt 0:04:27]} 41. g5 {[%emt 0:02:23]} Rh4+ {[%emt 0:01:52]} 42. Kf3 {[%emt 0:00:10]} Rh1 {[%emt 0:00:05]} 43. e4 {[%emt 0:01:25]} Rg1 {[%emt 0:02:33]} 44. Kf4 {[%emt 0:00:02]} h6 {[%emt 0:01:58]} 45. gxh6+ {[%emt 0:00:01]} Kxh6 {[%emt 0:00:10]} 46. Rd8 {[%emt 0:00:50]} g5+ {[%emt 0:00:58]} 47. Kf5 {[%emt 0:01:04]} Rf1+ {[%emt 0:00:15]} 48. Ke5 {[%emt 0:00:46]} g4 {[%emt 0:03:12]} 49. Rg8 {[%emt 0:01:44]} Kh5 {[%emt 0:00:13]} 50. Rh8+ {[%emt 0:00:08]} Kg5 {[%emt 0:00:07]} 51. Kd4 {[%emt 0:00:28]} Kf4 {[%emt 0:01:18]} 52. Kd3 {[%emt 0:00:20]} Kf3 {[%emt 0:04:50]} 53. Rf8 {[%emt 0:00:34]} Rd1+ {[%emt 0:00:30]} 54. Kc4 {[%emt 0:00:42]} Kxe4 {[%emt 0:01:28]} 55. Rxf7 {[%emt 0:00:04]} Rc1+ {[%emt 0:00:21]} 56. Kb3 {[%emt 0:00:03]} g3 {[%emt 0:00:24]} 57. Rg7 {[%emt 0:00:21]} Kf3 {[%emt 0:00:08]} 58. Kb2 {[%emt 0:00:05]} Rc4 {[%emt 0:00:19]} 59. Kb3 {[%emt 0:00:12]} Rg4 {[%emt 0:00:22]} 60. Rf7+ {[%emt 0:00:05]} Rf4 {[%emt 0:00:06]} 61. Rg7 {[%emt 0:00:05]} g2 {[%emt 0:00:51]} 0-1